[Event "9th RTU Open 2019"]
[Site "Riga"]
[Date "2019.08.09"]
[Round "8.31"]
[White "Kjartansson, Gudmundur"]
[Black "Ioannidis, Evgenios"]
[Result "0-1"]
[ECO "D46"]
[WhiteElo "2470"]
[BlackElo "2367"]
[Annotator "ChessBase"]
[PlyCount "80"]
[EventDate "2019.08.05"]
[EventType "swiss"]
[EventCountry "LAT"]
[SourceTitle "playchess.com"]
[Source "ChessBase"]
[SourceQuality "1"]
[TimeControl "5400+30"]

1. d4 {[%emt 0:01:51]} d5 {[%emt 0:02:16]} 2. c4 {[%emt 0:00:00]} c6 {[%emt 0:00:13]} 3. Nc3 {[%emt 0:00:00]} Nf6 {[%emt 0:00:18]} 4. e3 {[%emt 0:00:00]} e6 {[%emt 0:00:24]} 5. Nf3 {[%emt 0:00:00]} Nbd7 {[%emt 0:00:14]} 6. Qc2 {[%emt 0:00:00]} Bd6 {[%emt 0:00:23]} 7. Bd3 {[%emt 0:00:00]} O-O {[%emt 0:00:26]} 8. O-O {[%emt 0:00:00]} dxc4 {[%emt 0:00:14]} 9. Bxc4 {[%emt 0:00:00]} b5 {[%emt 0:00:33]} 10. Be2 {[%emt 0:00:50]} Bb7 {[%emt 0:00:33]} 11. e4 {[%emt 0:04:03]} e5 {[%emt 0:00:40]} 12. dxe5 {[%emt 0:00:33]} Nxe5 {[%emt 0:00:18]} 13. Nh4 {[%emt 0:01:02]} b4 {[%emt 0:11:53]} 14. Rd1 {[%emt 0:23:59]} bxc3 {[%emt 0:04:42]} 15. Nf5 {[%emt 0:00:06]} Ne8 {[%emt 0:02:24]} 16. Bf4 {[%emt 0:26:36]} Qf6 {[%emt 0:03:47]} 17. Qxc3 {[%emt 0:01:57]} Bc7 {[%emt 0:00:05]} 18. Qb4 {[%emt 0:00:54]} g5 {[%emt 0:01:29]} 19. Bxe5 {[%emt 0:09:26]} Qxe5 {[%emt 0:00:24]} 20. Nh6+ {[%emt 0:00:10]} Kg7 {[%emt 0:00:06]} 21. Ng4 {[%emt 0:00:05]} Qe6 {[%emt 0:12:02]} 22. Qxb7 {[%emt 0:00:26]} Rb8 {[%emt 0:00:02]} 23. Qxa7 {[%emt 0:01:05]} Rb4 {[%emt 0:01:05]} 24. Ne3 {[%emt 0:09:54]} Rxb2 {[%emt 0:13:03]} 25. Bd3 {[%emt 0:04:30]} Kg8 {[%emt 0:22:38]} 26. Nc4 {[%emt 0:02:01]} Rb4 {[%emt 0:02:21]} 27. Qc5 {[%emt 0:01:05]} Rb5 {[%emt 0:00:04]} 28. Qd4 {[%emt 0:00:44]} Nf6 {[%emt 0:01:18]} 29. a4 {[%emt 0:03:12]} Rd8 {[%emt 0:02:58]} 30. Qc3 {[%emt 0:02:07]} Rc5 {[%emt 0:01:58]} 31. a5 {[%emt 0:04:21]} Nxe4 {[%emt 0:04:31]} 32. Bxe4 {[%emt 0:01:43]} Rxd1+ {[%emt 0:00:15]} 33. Rxd1 {[%emt 0:00:03]} Rxc4 {[%emt 0:00:31]} 34. Qa1 {[%emt 0:02:24]} Rxe4 {[%emt 0:02:50]} 35. a6 {[%emt 0:00:06]} Qe5 {[%emt 0:01:19]} 36. f4 {[%emt 0:02:15]} Qxf4 {[%emt 0:02:11]} 37. g3 {[%emt 0:00:29]} Bb6+ {[%emt 0:00:11]} 38. Kg2 {[%emt 0:00:12]} Re2+ {[%emt 0:00:07]} 39. Kh3 {[%emt 0:00:03]} Qf5+ {[%emt 0:00:04]} 40. g4 {[%emt 0:00:03]} Qf3# {[%emt 0:00:03]} 0-1

[Event "9th RTU Open 2019"]
[Site "Riga"]
[Date "2019.08.09"]
[Round "8.32"]
[White "Usmanov, Vasily"]
[Black "Narva, Mai"]
[Result "1-0"]
[ECO "A18"]
[WhiteElo "2443"]
[BlackElo "2358"]
[Annotator "NA"]
[PlyCount "131"]
[EventDate "2019.08.05"]
[EventType "swiss"]
[EventCountry "LAT"]
[SourceTitle "playchess.com"]
[Source "ChessBase"]
[SourceQuality "1"]
[TimeControl "5400+30"]

1. c4 {[%emt 0:00:00]} Nf6 {[%emt 0:00:00]} 2. Nc3 {[%emt 0:00:00]} e6 {[%emt 0:00:44]} 3. e4 {[%emt 0:00:00]} d5 {[%emt 0:02:28]} 4. e5 {[%emt 0:00:00]} Nfd7 {[%emt 0:03:53]} 5. d4 {[%emt 0:00:28]} dxc4 {[%emt 0:01:43]} 6. Bxc4 {[%emt 0:00:07]} c5 {[%emt 0:04:19]} 7. d5 {[%emt 0:00:32]} Nxe5 {[%emt 0:04:21]} 8. Bb5+ {[%emt 0:00:05]} Bd7 {[%emt 0:02:28]} 9. dxe6 {[%emt 0:04:31]} Bxb5 {[%emt 0:04:41]} 10. exf7+ {[%emt 0:00:15]} Nxf7 {[%emt 0:00:11]} 11. Qxd8+ {[%emt 0:00:05]} Nxd8 {[%emt 0:07:19]} 12. Nxb5 {[%emt 0:00:03]} Ne6 {[%emt 0:00:51]} 13. Nf3 {[%emt 0:00:01]} Be7 {[%emt 0:08:26]} 14. O-O {[%emt 0:06:14]} Nc6 {[%emt 0:01:38]} 15. Re1 {[%emt 0:01:33]} Kf7 {[%emt 0:01:10]} 16. Be3 {[%emt 0:10:06]} Rhd8 {[%emt 0:04:43]} 17. h4 {[%emt 0:05:09]} h6 {[%emt 0:01:04]} 18. Rac1 {[%emt 0:01:45]} Rac8 {[%emt 0:09:54]} 19. g3 {[%emt 0:08:35]} Bf6 {[%emt 0:06:55]} 20. Rcd1 {[%emt 0:10:41]} Ncd4 {[%emt 0:09:27]} 21. Bxd4 {[%emt 0:03:01]} cxd4 {[%emt 0:01:12]} 22. Re2 {[%emt 0:07:59]} Rc5 {[%emt 0:12:12]} 23. Na3 {[%emt 0:00:21]} b5 {[%emt 0:04:43]} 24. Ne1 {[%emt 0:01:40]} b4 {[%emt 0:03:26]} 25. Nac2 {[%emt 0:01:12]} a5 {[%emt 0:00:25]} 26. Nd3 {[%emt 0:00:20]} Rf5 {[%emt 0:01:39]} 27. Kg2 {[%emt 0:03:00]} Rc8 {[%emt 0:01:14]} 28. Nce1 {[%emt 0:00:25]} g5 {[%emt 0:01:25]} 29. hxg5 {[%emt 0:00:05]} hxg5 {[%emt 0:00:24]} 30. Nf3 {[%emt 0:00:34]} Nc5 {[%emt 0:01:20]} 31. Nde5+ {[%emt 0:03:14]} Kg8 {[%emt 0:00:34]} 32. Rxd4 {[%emt 0:00:49]} Re8 {[%emt 0:00:34]} 33. Rd5 {[%emt 0:00:12]} Na4 {[%emt 0:00:34]} 34. Rxa5 {[%emt 0:01:10]} Nb6 {[%emt 0:00:17]} 35. Ng4 {[%emt 0:01:54]} Rxe2 {[%emt 0:00:27]} 36. Rxf5 {[%emt 0:00:08]} Bxb2 {[%emt 0:00:11]} 37. Rxg5+ {[%emt 0:00:03]} Kf8 {[%emt 0:00:21]} 38. Rb5 {[%emt 0:00:06]} Re4 {[%emt 0:00:33]} 39. Ne3 {[%emt 0:02:05]} Nc4 {[%emt 0:01:08]} 40. Nxc4 {[%emt 0:03:53]} Rxc4 {[%emt 0:00:06]} 41. Ne5 {[%emt 0:00:14]} Re4 {[%emt 0:00:56]} 42. f4 {[%emt 0:00:09]} Bc3 {[%emt 0:00:29]} 43. Kf3 {[%emt 0:00:06]} Re1 {[%emt 0:00:30]} 44. Nd3 {[%emt 0:01:30]} Rb1 {[%emt 0:00:32]} 45. Rb7 {[%emt 0:00:43]} Ke8 {[%emt 0:00:30]} 46. g4 {[%emt 0:00:43]} Rf1+ {[%emt 0:00:31]} 47. Ke4 {[%emt 0:00:11]} Ra1 {[%emt 0:00:28]} 48. Nxb4 {[%emt 0:01:06]} Rb1 {[%emt 0:00:17]} 49. a3 {[%emt 0:00:09]} Rb3 {[%emt 0:00:23]} 50. Ra7 {[%emt 0:01:37]} Bb2 {[%emt 0:00:36]} 51. g5 {[%emt 0:04:06]} Bxa3 {[%emt 0:00:15]} 52. Nd5 {[%emt 0:01:07]} Bb2 {[%emt 0:00:37]} 53. f5 {[%emt 0:03:03]} Rg3 {[%emt 0:00:45]} 54. Nc7+ {[%emt 0:00:41]} Kd7 {[%emt 0:00:37]} 55. Ne6+ {[%emt 0:00:05]} Kd6 {[%emt 0:00:18]} 56. Ra6+ {[%emt 0:00:55]} Ke7 {[%emt 0:00:43]} 57. Rb6 {[%emt 0:00:32]} Ba1 {[%emt 0:00:31]} 58. Rb1 {[%emt 0:00:16]} Bh8 {[%emt 0:00:16]} 59. Kf4 {[%emt 0:02:21]} Rg2 {[%emt 0:00:23]} 60. Kf3 {[%emt 0:00:09]} Ra2 {[%emt 0:00:29]} 61. Kg4 {[%emt 0:00:09]} Rh2 {[%emt 0:00:50]} 62. Nf4 {[%emt 0:01:15]} Bd4 {[%emt 0:00:24]} 63. f6+ {[%emt 0:00:48]} Kd6 {[%emt 0:00:39]} 64. Rd1 {[%emt 0:00:22]} Ke5 {[%emt 0:00:13]} 65. Ng6+ {[%emt 0:00:07]} Ke4 {[%emt 0:00:11]} 66. Rxd4+ {[%emt 0:00:11]} 1-0

[Event "9th RTU Open 2019"]
[Site "Riga"]
[Date "2019.08.09"]
[Round "8.33"]
[White "Smirnov, Artem"]
[Black "Lazavik, Denis"]
[Result "1/2-1/2"]
[ECO "D18"]
[WhiteElo "2421"]
[BlackElo "2347"]
[Annotator "NA"]
[PlyCount "86"]
[EventDate "2019.08.05"]
[EventType "swiss"]
[EventCountry "LAT"]
[SourceTitle "playchess.com"]
[Source "ChessBase"]
[SourceQuality "1"]
[TimeControl "5400+30"]

1. d4 {[%emt 0:02:31]} d5 {[%emt 0:00:00]} 2. c4 {[%emt 0:00:05]} c6 {[%emt 0:00:18]} 3. Nf3 {[%emt 0:00:04]} Nf6 {[%emt 0:00:21]} 4. Nc3 {[%emt 0:00:06]} dxc4 {[%emt 0:00:11]} 5. a4 {[%emt 0:00:04]} Bf5 {[%emt 0:00:18]} 6. Nh4 {[%emt 0:00:04]} e6 {[%emt 0:00:27]} 7. Nxf5 {[%emt 0:00:05]} exf5 {[%emt 0:00:17]} 8. e3 {[%emt 0:00:04]} Bb4 {[%emt 0:00:24]} 9. Bxc4 {[%emt 0:00:05]} O-O {[%emt 0:00:09]} 10. Qc2 {[%emt 0:00:05]} g6 {[%emt 0:02:18]} 11. O-O {[%emt 0:00:07]} Nbd7 {[%emt 0:00:14]} 12. f3 {[%emt 0:00:06]} Rc8 {[%emt 0:00:34]} 13. Kh1 {[%emt 0:00:13]} c5 {[%emt 0:00:30]} 14. Ba2 {[%emt 0:00:13]} Qa5 {[%emt 0:00:24]} 15. Qf2 {[%emt 0:03:46]} Rfe8 {[%emt 0:02:57]} 16. g4 {[%emt 0:07:29]} fxg4 {[%emt 0:20:53]} 17. fxg4 {[%emt 0:01:21]} Bxc3 {[%emt 0:00:54]} 18. bxc3 {[%emt 0:01:00]} c4 {[%emt 0:00:32]} 19. Rb1 {[%emt 0:13:38]} Qd5+ {[%emt 0:04:44]} 20. Qf3 {[%emt 0:00:22]} Qxf3+ {[%emt 0:00:24]} 21. Rxf3 {[%emt 0:00:06]} Rc7 {[%emt 0:00:29]} 22. Rb4 {[%emt 0:22:57]} Kg7 {[%emt 0:11:31]} 23. g5 {[%emt 0:41:57]} Ne4 {[%emt 0:00:16]} 24. Rxc4 {[%emt 0:00:05]} Rxc4 {[%emt 0:00:18]} 25. Bxc4 {[%emt 0:00:01]} Nxg5 {[%emt 0:00:14]} 26. Rf1 {[%emt 0:00:32]} Rc8 {[%emt 0:01:39]} 27. Bd5 {[%emt 0:02:23]} f5 {[%emt 0:04:01]} 28. Bxb7 {[%emt 0:02:51]} Rxc3 {[%emt 0:00:11]} 29. d5 {[%emt 0:00:51]} Rc2 {[%emt 0:00:13]} 30. d6 {[%emt 0:00:52]} Ne4 {[%emt 0:01:26]} 31. Bxe4 {[%emt 0:00:50]} fxe4 {[%emt 0:00:05]} 32. Ba3 {[%emt 0:00:12]} Ne5 {[%emt 0:04:26]} 33. d7 {[%emt 0:00:43]} Nxd7 {[%emt 0:00:22]} 34. Rb1 {[%emt 0:00:27]} Ra2 {[%emt 0:07:57]} 35. Bb2+ {[%emt 0:00:39]} Kf7 {[%emt 0:00:10]} 36. Bd4 {[%emt 0:00:06]} Rxa4 {[%emt 0:09:37]} 37. Rb7 {[%emt 0:00:02]} Ke6 {[%emt 0:00:07]} 38. Bxa7 {[%emt 0:00:04]} Kd6 {[%emt 0:01:37]} 39. Bd4 {[%emt 0:00:30]} Kc6 {[%emt 0:00:08]} 40. Rb2 {[%emt 0:00:42]} Ra5 {[%emt 0:00:33]} 41. Kg2 {[%emt 0:01:35]} Kd6 {[%emt 0:01:45]} 42. Rb7 {[%emt 0:00:24]} h5 {[%emt 0:02:27]} 43. h4 {[%emt 0:00:33]} Kc6 {[%emt 0:02:12]} 1/2-1/2

[Event "9th RTU Open 2019"]
[Site "Riga"]
[Date "2019.08.11"]
[Round "9.2"]
[White "Sulskis, Sarunas"]
[Black "Pultinevicius, Paulius"]
[Result "1-0"]
[ECO "B12"]
[WhiteElo "2528"]
[BlackElo "2481"]
[Annotator "ChessBase"]
[PlyCount "107"]
[EventDate "2019.08.05"]
[EventType "swiss"]
[EventCountry "LAT"]
[SourceTitle "playchess.com"]
[Source "ChessBase"]
[SourceQuality "1"]
[TimeControl "5400+30"]

1. e4 {[%emt 0:00:00]} c6 {[%emt 0:00:00]} 2. d4 {[%emt 0:00:00]} d5 {[%emt 0:00:00]} 3. e5 {[%emt 0:00:06]} Bf5 {[%emt 0:00:04]} 4. g4 {[%emt 0:00:10]} Be4 {[%emt 0:00:06]} 5. f3 {[%emt 0:00:09]} Bg6 {[%emt 0:00:04]} 6. e6 {[%emt 0:00:09]} Qd6 {[%emt 0:00:33]} 7. exf7+ {[%emt 0:02:23]} Bxf7 {[%emt 0:00:30]} 8. Nh3 {[%emt 0:00:42]} Nd7 {[%emt 0:06:11]} 9. Qe2 {[%emt 0:09:11]} e5 {[%emt 0:06:26]} 10. Bf4 {[%emt 0:04:50]} Be7 {[%emt 0:01:00]} 11. dxe5 {[%emt 0:09:35]} Bh4+ {[%emt 0:00:07]} 12. Bg3 {[%emt 0:05:41]} Bxg3+ {[%emt 0:00:43]} 13. hxg3 {[%emt 0:00:08]} Qxe5 {[%emt 0:00:37]} 14. Nd2 {[%emt 0:02:23]} O-O-O {[%emt 0:03:51]} 15. Qxe5 {[%emt 0:03:10]} Nxe5 {[%emt 0:00:05]} 16. O-O-O {[%emt 0:00:09]} Nf6 {[%emt 0:07:07]} 17. g5 {[%emt 0:02:05]} Nfd7 {[%emt 0:01:24]} 18. Nf2 {[%emt 0:02:33]} Kc7 {[%emt 0:12:28]} 19. f4 {[%emt 0:02:37]} Nc4 {[%emt 0:01:32]} 20. Nxc4 {[%emt 0:12:47]} dxc4 {[%emt 0:00:32]} 21. Bg2 {[%emt 0:00:34]} Rde8 {[%emt 0:02:36]} 22. Rde1 {[%emt 0:03:31]} Rxe1+ {[%emt 0:06:18]} 23. Rxe1 {[%emt 0:00:06]} Re8 {[%emt 0:00:08]} 24. Rxe8 {[%emt 0:00:40]} Bxe8 {[%emt 0:00:04]} 25. Kd2 {[%emt 0:00:21]} Kd6 {[%emt 0:04:34]} 26. Ne4+ {[%emt 0:03:14]} Ke7 {[%emt 0:01:09]} 27. Bh3 {[%emt 0:00:18]} Bf7 {[%emt 0:05:56]} 28. Bxd7 {[%emt 0:06:25]} Kxd7 {[%emt 0:00:36]} 29. Kc3 {[%emt 0:08:25]} Ke6 {[%emt 0:12:13]} 30. Kd4 {[%emt 0:01:57]} b6 {[%emt 0:00:38]} 31. g4 {[%emt 0:01:17]} Bg6 {[%emt 0:07:02]} 32. c3 {[%emt 0:01:40]} c5+ {[%emt 0:00:20]} 33. Ke3 {[%emt 0:00:13]} Be8 {[%emt 0:01:24]} 34. f5+ {[%emt 0:01:25]} Ke5 {[%emt 0:01:14]} 35. Nd2 {[%emt 0:00:08]} Kd5 {[%emt 0:01:58]} 36. Kf4 {[%emt 0:00:20]} b5 {[%emt 0:03:48]} 37. Nf3 {[%emt 0:01:09]} Kd6 {[%emt 0:00:39]} 38. Ne5 {[%emt 0:01:08]} Kd5 {[%emt 0:00:59]} 39. f6 {[%emt 0:02:00]} gxf6 {[%emt 0:00:04]} 40. gxf6 {[%emt 0:00:05]} Ke6 {[%emt 0:00:02]} 41. g5 {[%emt 0:00:22]} h6 {[%emt 0:02:27]} 42. gxh6 {[%emt 0:01:59]} Kxf6 {[%emt 0:00:04]} 43. Ng4+ {[%emt 0:00:29]} Kg6 {[%emt 0:00:13]} 44. Ke5 {[%emt 0:03:37]} b4 {[%emt 0:01:46]} 45. Kd6 {[%emt 0:02:55]} bxc3 {[%emt 0:00:13]} 46. bxc3 {[%emt 0:00:07]} Ba4 {[%emt 0:00:02]} 47. Kxc5 {[%emt 0:00:13]} Bd1 {[%emt 0:00:27]} 48. Ne5+ {[%emt 0:01:05]} Kxh6 {[%emt 0:00:04]} 49. Nc6 {[%emt 0:00:13]} Kg5 {[%emt 0:01:32]} 50. Nxa7 {[%emt 0:00:09]} Kf5 {[%emt 0:01:53]} 51. Nc8 {[%emt 0:01:15]} Ke6 {[%emt 0:00:36]} 52. Nb6 {[%emt 0:00:17]} Bf3 {[%emt 0:00:38]} 53. a4 {[%emt 0:00:12]} Ke7 {[%emt 0:00:05]} 54. a5 {[%emt 0:01:05]} 1-0

[Event "9th RTU Open 2019"]
[Site "Riga"]
[Date "2019.08.11"]
[Round "9.5"]
[White "Mikaelyan, Arman"]
[Black "Gopal G.N."]
[Result "1-0"]
[ECO "D00"]
[WhiteElo "2454"]
[BlackElo "2594"]
[Annotator "ChessBase"]
[PlyCount "89"]
[EventDate "2019.08.05"]
[EventType "swiss"]
[EventCountry "LAT"]
[SourceTitle "playchess.com"]
[Source "ChessBase"]
[SourceQuality "1"]
[TimeControl "5400+30"]

1. d4 {[%emt 0:00:00]} Nf6 {[%emt 0:00:00]} 2. Bg5 {[%emt 0:00:00]} d5 {[%emt 0:00:22]} 3. e3 {[%emt 0:00:08]} c6 {[%emt 0:03:20]} 4. Bd3 {[%emt 0:00:31]} Bg4 {[%emt 0:00:18]} 5. Ne2 {[%emt 0:02:10]} Nbd7 {[%emt 0:01:27]} 6. f3 {[%emt 0:02:00]} Bh5 {[%emt 0:00:23]} 7. O-O {[%emt 0:00:40]} e5 {[%emt 0:04:21]} 8. c4 {[%emt 0:03:17]} dxc4 {[%emt 0:05:04]} 9. Bxc4 {[%emt 0:00:14]} Be7 {[%emt 0:01:04]} 10. Nbc3 {[%emt 0:02:37]} O-O {[%emt 0:00:55]} 11. Bb3 {[%emt 0:00:49]} Bg6 {[%emt 0:07:58]} 12. Bh4 {[%emt 0:05:11]} Re8 {[%emt 0:12:22]} 13. Bf2 {[%emt 0:04:59]} exd4 {[%emt 0:01:25]} 14. Nxd4 {[%emt 0:00:51]} Ne5 {[%emt 0:08:31]} 15. Bc2 {[%emt 0:07:44]} Bc5 {[%emt 0:05:25]} 16. e4 {[%emt 0:03:38]} b5 {[%emt 0:04:19]} 17. a4 {[%emt 0:03:23]} a6 {[%emt 0:03:44]} 18. Nce2 {[%emt 0:02:11]} Qc7 {[%emt 0:04:40]} 19. Kh1 {[%emt 0:04:40]} Rad8 {[%emt 0:01:32]} 20. Qc1 {[%emt 0:05:35]} Qb6 {[%emt 0:05:07]} 21. Rd1 {[%emt 0:03:50]} Rd7 {[%emt 0:02:49]} 22. Bg1 {[%emt 0:05:19]} a5 {[%emt 0:13:20]} 23. b3 {[%emt 0:09:38]} Red8 {[%emt 0:01:29]} 24. Qg5 {[%emt 0:04:22]} Re8 {[%emt 0:03:30]} 25. h3 {[%emt 0:12:33]} h6 {[%emt 0:00:12]} 26. Qg3 {[%emt 0:00:56]} bxa4 {[%emt 0:04:36]} 27. Rxa4 {[%emt 0:00:53]} Qd8 {[%emt 0:01:31]} 28. f4 {[%emt 0:04:33]} Bxe4 {[%emt 0:01:32]} 29. fxe5 {[%emt 0:00:49]} Nh5 {[%emt 0:00:08]} 30. Qg4 {[%emt 0:03:15]} Bxc2 {[%emt 0:00:40]} 31. Rc1 {[%emt 0:00:07]} Bxd4 {[%emt 0:01:24]} 32. Nxd4 {[%emt 0:00:08]} Bg6 {[%emt 0:01:25]} 33. Nxc6 {[%emt 0:00:46]} Qc7 {[%emt 0:01:01]} 34. Rxa5 {[%emt 0:04:11]} Rd2 {[%emt 0:00:32]} 35. Ra7 {[%emt 0:00:29]} Qxa7 {[%emt 0:00:29]} 36. Bxa7 {[%emt 0:00:21]} Be4 {[%emt 0:00:28]} 37. Rg1 {[%emt 0:00:43]} g6 {[%emt 0:00:16]} 38. Nd4 {[%emt 0:00:58]} Ra8 {[%emt 0:00:47]} 39. Kh2 {[%emt 0:00:34]} Bd5 {[%emt 0:00:18]} 40. Nb5 {[%emt 0:01:00]} Bc6 {[%emt 0:00:41]} 41. e6 {[%emt 0:00:19]} Bxb5 {[%emt 0:00:31]} 42. exf7+ {[%emt 0:00:08]} Kh7 {[%emt 0:00:00]} 43. Bc5 {[%emt 0:00:15]} Nf6 {[%emt 0:00:52]} 44. Qf4 {[%emt 0:00:22]} Rd7 {[%emt 0:00:30]} 45. Qxf6 {[%emt 0:00:13]} 1-0

[Event "9th RTU Open 2019"]
[Site "Riga"]
[Date "2019.08.11"]
[Round "9.6"]
[White "Dastan, Muhammed Batuhan"]
[Black "Gukesh D"]
[Result "1/2-1/2"]
[ECO "D78"]
[WhiteElo "2565"]
[BlackElo "2520"]
[Annotator "ChessBase"]
[PlyCount "90"]
[EventDate "2019.08.05"]
[EventType "swiss"]
[EventCountry "LAT"]
[SourceTitle "playchess.com"]
[Source "ChessBase"]
[SourceQuality "1"]
[TimeControl "5400+30"]

1. Nf3 {[%emt 0:00:00]} d5 {[%emt 0:01:37]} 2. g3 {[%emt 0:03:28]} g6 {[%emt 0:05:58]} 3. Bg2 {[%emt 0:03:44]} Bg7 {[%emt 0:00:09]} 4. d4 {[%emt 0:01:04]} Nf6 {[%emt 0:00:28]} 5. c4 {[%emt 0:00:20]} c6 {[%emt 0:01:59]} 6. Qb3 {[%emt 0:01:15]} O-O {[%emt 0:01:26]} 7. O-O {[%emt 0:00:12]} dxc4 {[%emt 0:12:11]} 8. Qxc4 {[%emt 0:00:42]} Bf5 {[%emt 0:00:16]} 9. Nc3 {[%emt 0:00:51]} Nbd7 {[%emt 0:00:16]} 10. Re1 {[%emt 0:00:47]} Ne4 {[%emt 0:03:33]} 11. Nh4 {[%emt 0:04:59]} Be6 {[%emt 0:03:12]} 12. Qb4 {[%emt 0:09:46]} Nd6 {[%emt 0:10:53]} 13. Nf3 {[%emt 0:16:47]} b5 {[%emt 0:03:37]} 14. Ng5 {[%emt 0:06:27]} Bc4 {[%emt 0:03:36]} 15. Nce4 {[%emt 0:01:00]} Nf5 {[%emt 0:08:53]} 16. Nf3 {[%emt 0:07:36]} a5 {[%emt 0:12:21]} 17. Qd2 {[%emt 0:03:29]} e5 {[%emt 0:00:38]} 18. dxe5 {[%emt 0:05:41]} Nxe5 {[%emt 0:00:14]} 19. Nxe5 {[%emt 0:00:20]} Bxe5 {[%emt 0:00:09]} 20. e3 {[%emt 0:01:26]} Qe7 {[%emt 0:03:33]} 21. Qc2 {[%emt 0:01:12]} Rfd8 {[%emt 0:02:30]} 22. Bf1 {[%emt 0:05:17]} Bxf1 {[%emt 0:08:04]} 23. Rxf1 {[%emt 0:04:04]} Rac8 {[%emt 0:02:55]} 24. a4 {[%emt 0:00:51]} Nd6 {[%emt 0:01:51]} 25. Nxd6 {[%emt 0:02:25]} Qxd6 {[%emt 0:00:13]} 26. e4 {[%emt 0:07:00]} Qb4 {[%emt 0:05:08]} 27. f4 {[%emt 0:00:17]} Bd4+ {[%emt 0:00:55]} 28. Kg2 {[%emt 0:02:13]} Bb6 {[%emt 0:02:37]} 29. Ra3 {[%emt 0:01:51]} Rd4 {[%emt 0:01:03]} 30. e5 {[%emt 0:03:13]} Rc4 {[%emt 0:02:07]} 31. Qe2 {[%emt 0:01:00]} Qc5 {[%emt 0:00:26]} 32. Be3 {[%emt 0:01:09]} Qd5+ {[%emt 0:00:56]} 33. Kh3 {[%emt 0:02:20]} Re4 {[%emt 0:01:09]} 34. Qg4 {[%emt 0:00:29]} Rb8 {[%emt 0:01:17]} 35. Bxb6 {[%emt 0:02:31]} Rxb6 {[%emt 0:00:05]} 36. Rd1 {[%emt 0:00:18]} Rd4 {[%emt 0:00:53]} 37. Rxd4 {[%emt 0:00:12]} Qxd4 {[%emt 0:00:02]} 38. axb5 {[%emt 0:00:24]} Rxb5 {[%emt 0:00:46]} 39. Qc8+ {[%emt 0:01:42]} Kg7 {[%emt 0:00:00]} 40. Qxc6 {[%emt 0:00:05]} Rxb2 {[%emt 0:01:09]} 41. Qf6+ {[%emt 0:00:02]} Kg8 {[%emt 0:00:27]} 42. Rxa5 {[%emt 0:00:05]} Qe4 {[%emt 0:00:53]} 43. Qd8+ {[%emt 0:01:02]} Kg7 {[%emt 0:00:01]} 44. Qf6+ {[%emt 0:00:05]} Kg8 {[%emt 0:00:13]} 45. Qd8+ {[%emt 0:00:41]} Kg7 {[%emt 0:00:04]} 1/2-1/2

[Event "9th RTU Open 2019"]
[Site "Riga"]
[Date "2019.08.11"]
[Round "9.7"]
[White "Lalith Babu M R"]
[Black "Vishnu Prasanna. V"]
[Result "0-1"]
[ECO "A35"]
[WhiteElo "2580"]
[BlackElo "2505"]
[Annotator "ChessBase"]
[PlyCount "94"]
[EventDate "2019.08.05"]
[EventType "swiss"]
[EventCountry "LAT"]
[SourceTitle "playchess.com"]
[Source "ChessBase"]
[SourceQuality "1"]
[TimeControl "5400+30"]

1. Nf3 {[%emt 0:00:00]} c5 {[%emt 0:00:42]} 2. c4 {[%emt 0:00:00]} Nc6 {[%emt 0:01:17]} 3. Nc3 {[%emt 0:00:00]} g6 {[%emt 0:03:12]} 4. e3 {[%emt 0:00:00]} Nf6 {[%emt 0:00:07]} 5. d4 {[%emt 0:02:41]} cxd4 {[%emt 0:00:06]} 6. exd4 {[%emt 0:00:03]} d5 {[%emt 0:00:08]} 7. cxd5 {[%emt 0:00:20]} Nxd5 {[%emt 0:00:06]} 8. Qb3 {[%emt 0:01:01]} Nxc3 {[%emt 0:00:37]} 9. Bc4 {[%emt 0:01:00]} e6 {[%emt 0:00:13]} 10. bxc3 {[%emt 0:01:24]} Bg7 {[%emt 0:00:30]} 11. Ba3 {[%emt 0:01:41]} Bf8 {[%emt 0:00:11]} 12. Bb5 {[%emt 0:05:39]} Bd7 {[%emt 0:12:25]} 13. O-O {[%emt 0:03:56]} Bxa3 {[%emt 0:09:39]} 14. Qxa3 {[%emt 0:00:25]} Qe7 {[%emt 0:08:34]} 15. Qc1 {[%emt 0:00:42]} O-O {[%emt 0:02:36]} 16. Qh6 {[%emt 0:01:17]} Rad8 {[%emt 0:03:19]} 17. Rfe1 {[%emt 0:01:03]} f6 {[%emt 0:04:01]} 18. Rab1 {[%emt 0:10:52]} Qf7 {[%emt 0:07:03]} 19. Nd2 {[%emt 0:03:20]} Ne7 {[%emt 0:02:09]} 20. Ne4 {[%emt 0:05:22]} Nf5 {[%emt 0:05:56]} 21. Qf4 {[%emt 0:00:35]} Bxb5 {[%emt 0:11:39]} 22. Rxb5 {[%emt 0:00:25]} Rd5 {[%emt 0:01:01]} 23. Rb2 {[%emt 0:04:23]} b6 {[%emt 0:01:17]} 24. Rbe2 {[%emt 0:02:51]} Qe7 {[%emt 0:09:26]} 25. Qf3 {[%emt 0:04:08]} Qd8 {[%emt 0:01:08]} 26. Ng3 {[%emt 0:05:31]} Ng7 {[%emt 0:01:45]} 27. Nf1 {[%emt 0:00:17]} b5 {[%emt 0:04:00]} 28. Ne3 {[%emt 0:06:14]} Rd6 {[%emt 0:00:07]} 29. Rb1 {[%emt 0:03:48]} Qc7 {[%emt 0:03:43]} 30. Nf1 {[%emt 0:03:27]} Qc6 {[%emt 0:00:46]} 31. Qd3 {[%emt 0:01:22]} a6 {[%emt 0:01:54]} 32. Ng3 {[%emt 0:03:25]} e5 {[%emt 0:01:03]} 33. Qe3 {[%emt 0:00:51]} exd4 {[%emt 0:00:34]} 34. cxd4 {[%emt 0:00:04]} Re8 {[%emt 0:02:19]} 35. Qb3+ {[%emt 0:00:45]} Qc4 {[%emt 0:01:25]} 36. Rxe8+ {[%emt 0:00:05]} Nxe8 {[%emt 0:00:03]} 37. Qe3 {[%emt 0:00:15]} Re6 {[%emt 0:00:31]} 38. Qd2 {[%emt 0:00:14]} Nd6 {[%emt 0:01:04]} 39. Rc1 {[%emt 0:00:31]} Qd5 {[%emt 0:00:04]} 40. Rc7 {[%emt 0:00:10]} Nf7 {[%emt 0:02:07]} 41. Rc5 {[%emt 0:01:55]} Qd7 {[%emt 0:00:35]} 42. d5 {[%emt 0:01:10]} Re8 {[%emt 0:00:16]} 43. h3 {[%emt 0:00:12]} f5 {[%emt 0:00:12]} 44. h4 {[%emt 0:03:03]} Qe7 {[%emt 0:00:11]} 45. Qd4 {[%emt 0:02:42]} Qe5 {[%emt 0:01:06]} 46. Qd3 {[%emt 0:01:19]} Qa1+ {[%emt 0:00:27]} 47. Kh2 {[%emt 0:00:10]} Ne5 {[%emt 0:00:18]} 0-1